fUSD/lending_fUSD_20240930
["ID","MTS","AMOUNT","RATE_DAILY","PERIOD"]
[339607024,1727739032269,-299.00615911,0.000127,2]
[339607026,1727739037452,-3524.79836481,0.000127,2]
[339607030,1727739037463,-703.01355159,0.000127,2]
[339607031,1727739037474,-660.68832224,0.000127,2]
[339607032,1727739037486,-29517.04542,0.000127,2]
[339607033,1727739037498,-1357.22542988,0.000127,2]
[339607034,1727739037509,-2084.0327375,0.000127,2]
[339607035,1727739037520,-2977.22530753,0.000127,2]
[339607036,1727739037531,-2166.78342138,0.000127,2]
[339607037,1727739037544,-2355.0,0.000127,2]
[339607038,1727739037556,-2894.75,0.000127,2]
[339607039,1727739037567,-2177.28935891,0.000127,2]
[339607040,1727739037581,-744.24896759,0.000127,2]
[339607041,1727739037661,-6343.80348218,0.000127,2]
[339607042,1727739037672,-282.04696975,0.000127,2]
[339607043,1727739037683,-566.76354058,0.000127,2]
[339607044,1727739037694,-822.49017547,0.000127,2]
[339607045,1727739037774,-285.49172499,0.000127,2]
[339607046,1727739037786,-538.79913189,0.000127,2]
[339607047,1727739037805,-930.71763429,0.000127,2]
[339607048,1727739037817,-3461.42250484,0.000127,2]
[339607054,1727739039459,-2954.1894928,0.000127,2]
[339607055,1727739039481,-2624.85949106,0.000127,2]
[339607056,1727739039491,-1651.62232941,0.000127,2]
[339607057,1727739039503,-15465.52767059,0.000127,2]
[339607058,1727739039513,-187.71985901,0.000127,2]
[339607059,1727739039525,-1048.43092379,0.000127,2]
[339607060,1727739039537,-4292.5035172,0.000127,2]
[339607061,1727739039548,-3755.9644,0.000127,2]
[339607062,1727739039558,-3966.36251694,0.000127,2]
[339607063,1727739039570,-327.36881264,0.000127,2]
[339607064,1727739039581,-82937.23147042,0.000127,2]
[339607065,1727739039591,-30127.17703351,0.0001277,2]
[339607066,1727739039600,-1080.0,0.00012775,2]
[339607067,1727739039610,-150.0,0.00012795,2]
[339607068,1727739039619,-500.0,0.00012797,2]
[339607069,1727739039629,-324.414,0.00012799,2]
[339607070,1727739039638,-166.198302,0.00012799,2]
[339607071,1727739039647,-171.30096857,0.00012799,2]
[339607072,1727739039657,-176.37693395,0.000128,2]
[339607073,1727739039666,-176.37693395,0.000128,2]
[339607074,1727739039675,-176.37693395,0.000128,2]
[339607075,1727739039685,-176.87,0.000128,2]
[339607076,1727739039694,-173.76348612,0.000128,2]
[339607077,1727739039703,-173.76348612,0.000128,2]
[339607078,1727739039713,-173.76348612,0.000128,2]
[339607079,1727739039722,-174.26,0.000128,2]
[339607080,1727739039732,-179.31543823,0.000128,2]
[339607081,1727739039741,-179.31543823,0.000128,2]
[339607082,1727739039750,-179.81,0.000128,2]
[339607083,1727739039759,-1000.0,0.00012835,2]
[339607084,1727739039768,-1000.0,0.00012835,2]
[339607085,1727739039778,-1000.0,0.00012835,2]
[339607086,1727739039787,-713.9338,0.00012835,2]
[339607087,1727739039798,-313.008545,0.00012849,2]
[339607088,1727739039807,-185.911171,0.00012849,2]
[339607089,1727739039816,-180.320255,0.00012849,2]
[339607090,1727739039826,-500.0,0.00012873,2]
[339607091,1727739039835,-500.0,0.00012876,2]
[339607092,1727739039844,-500.0,0.00012876,2]
[339607093,1727739039853,-500.0,0.00012876,2]
[339607094,1727739039863,-293.86534035,0.00012876,2]
[339607095,1727739039875,-206.13465965,0.00012876,2]
[339607096,1727739039886,-500.0,0.00012876,2]
[339607097,1727739039895,-500.0,0.00012876,2]
[339607098,1727739039904,-500.0,0.00012876,2]
[339607099,1727739039914,-500.0,0.00012876,2]
[339607100,1727739039923,-281.31851387,0.00012876,2]
[339607101,1727739039935,-218.68148613,0.00012876,2]
[339607102,1727739039944,-720.94988699,0.00012876,2]
[339607103,1727739039955,-476.88011301,0.00012876,2]
[339607104,1727739039965,-185.82623615,0.00012876,2]
[339607105,1727739039977,-314.17376385,0.00012876,2]
[339607106,1727739039987,-500.0,0.00012876,2]
[339607107,1727739039998,-87.98768046,0.00012876,2]
[339607108,1727739040012,-412.01231954,0.00012876,2]
[339607109,1727739040022,-500.0,0.00012876,2]
[339607110,1727739040033,-500.0,0.00012876,2]
[339607111,1727739040044,-500.0,0.00012876,2]
[339607112,1727739040054,-500.0,0.00012876,2]
[339607113,1727739040064,-99.3003353,0.00012876,2]
[339607114,1727739040076,-174.05135884,0.00012876,2]
[339607115,1727739040086,-637.96,0.00012876,2]
[339607116,1727739040096,-622.71,0.00012876,2]
[339607117,1727739040106,-500.0,0.00012876,2]
[339607118,1727739040115,-500.0,0.00012876,2]
[339607119,1727739040124,-500.0,0.00012876,2]
[339607120,1727739040133,-183.85611826,0.00012876,2]
[339607121,1727739040143,-500.0,0.00012876,2]
[339607122,1727739040152,-500.0,0.00012876,2]
[339607123,1727739040161,-260.53729954,0.00012876,2]
[339607124,1727739040173,-239.46270046,0.00012876,2]
[339607125,1727739040182,-503.1122822,0.00012876,2]
[339607126,1727739040191,-65.08952534,0.00012876,2]
[339607127,1727739040202,-434.91047466,0.00012876,2]
[339607128,1727739040214,-35.9842935,0.00012876,2]
[339607129,1727739040415,-464.0157065,0.00012876,2]
[339607130,1727739040426,-500.0,0.00012876,2]
[339607131,1727739040435,-1169.41,0.00012876,2]
[339607132,1727739040444,-403.61381668,0.00012876,2]
[339607133,1727739040456,-96.38618332,0.00012876,2]
[339607134,1727739040467,-500.0,0.00012876,2]
[339607135,1727739040476,-33.87223007,0.00012876,2]
[339607136,1727739040493,-466.12776993,0.00012876,2]
[339607137,1727739040502,-653.76,0.00012876,2]
[339607138,1727739040512,-500.0,0.00012876,2]
[339607139,1727739040522,-485.55153137,0.00012876,2]
[339607140,1727739040598,-14.44846863,0.00012876,2]
[339607141,1727739040608,-500.0,0.00012876,2]
[339607142,1727739040617,-512.85007719,0.00012876,2]
[339607143,1727739040628,-500.0,0.00012876,2]
[339607144,1727739040638,-500.0,0.00012876,2]
[339607145,1727739040647,-215.05880884,0.00012876,2]
[339607146,1727739040661,-284.94119116,0.00012876,2]
[339607147,1727739040670,-500.0,0.00012876,2]
[339607148,1727739040681,-505.15428025,0.00012876,2]
[339607149,1727739040692,-500.0,0.00012876,2]
[339607150,1727739040701,-621.0399399,0.00012876,2]
[339607151,1727739040712,-258.89358869,0.00012876,2]
[339607152,1727739040725,-241.10641131,0.00012876,2]
[339607153,1727739040734,-500.0,0.00012876,2]
[339607154,1727739040744,-243.81464189,0.00012876,2]
[339607155,1727739040756,-256.18535811,0.00012876,2]
[339607156,1727739040765,-294.31558057,0.00012876,2]
[339607157,1727739040779,-205.68441943,0.00012876,2]
[339607158,1727739040789,-320.10728996,0.00012876,2]
[339607159,1727739040829,-179.89271004,0.00012876,2]
[339607160,1727739040839,-500.0,0.00012876,2]
[339607161,1727739040850,-500.0,0.00012876,2]
[339607162,1727739040860,-500.0,0.00012876,2]
[339607163,1727739040871,-461.36457073,0.00012876,2]
[339607164,1727739040885,-38.63542927,0.00012876,2]
[339607165,1727739040895,-504.53,0.00012876,2]
[339607166,1727739040906,-500.0,0.00012876,2]
[339607167,1727739040916,-500.0,0.00012876,2]
[339607168,1727739040926,-50.5920746,0.00012876,2]
[339607169,1727739040939,-449.4079254,0.00012876,2]
[339607170,1727739040948,-35.9901264,0.00012876,2]
[339607175,1727739042661,-464.0098736,0.00012876,2]
[339607176,1727739042670,-500.0,0.00012876,2]
[339607177,1727739042680,-388.27168507,0.00012876,2]
[339607178,1727739042691,-111.72831493,0.00012876,2]
[339607179,1727739042701,-500.0,0.00012876,2]
[339607180,1727739042711,-535.32,0.00012876,2]
[339607181,1727739042722,-500.0,0.00012876,2]
[339607182,1727739042732,-501.2233168,0.00012876,2]
[339607183,1727739042741,-501.390348,0.00012876,2]
[339607184,1727739042751,-500.0,0.00012876,2]
[339607185,1727739042760,-349.21529415,0.00012876,2]
[339607186,1727739042770,-500.0,0.00012876,2]
[339607187,1727739042779,-500.0,0.00012876,2]
[339607188,1727739042789,-516.67233593,0.00012876,2]
[339607189,1727739042800,-500.0,0.00012876,2]
[339607190,1727739042810,-500.0,0.00012876,2]
[339607191,1727739042819,-500.0,0.00012876,2]
[339607192,1727739042829,-501.24362106,0.00012876,2]
[339607193,1727739042841,-500.0,0.00012876,2]
[339607194,1727739042852,-500.0,0.00012876,2]
[339607195,1727739042862,-500.0,0.00012876,2]
[339607196,1727739042871,-500.0,0.00012876,2]
[339607197,1727739042881,-500.0,0.00012876,2]
[339607198,1727739042891,-507.12140625,0.00012876,2]
[339607199,1727739042900,-500.0,0.00012876,2]
[339607200,1727739042910,-605.71377199,0.00012876,2]
[339607202,1727739042919,-500.0,0.00012876,2]
[339607204,1727739042928,-500.0,0.00012876,2]
[339607206,1727739042937,-597.71361982,0.00012876,2]
[339607208,1727739042947,-500.0,0.00012876,2]
[339607210,1727739042958,-500.0,0.00012876,2]
[339607212,1727739042967,-582.06083843,0.00012876,2]
[339607214,1727739042976,-500.0,0.00012876,2]
[339607216,1727739042986,-377.33905651,0.00012876,2]
[339607218,1727739042995,-516.28,0.00012876,2]
[339607220,1727739043005,-500.0,0.00012876,2]
[339607222,1727739043014,-500.0,0.00012876,2]
[339607224,1727739043024,-500.0,0.00012876,2]
[339607227,1727739043034,-582.47248702,0.00012876,2]
[339607229,1727739043044,-500.0,0.00012876,2]
[339607231,1727739043053,-500.0,0.00012876,2]
[339607233,1727739043062,-1150.22,0.00012876,2]
[339607235,1727739043071,-500.0,0.00012876,2]
[339607237,1727739043081,-500.0,0.00012876,2]
[339607239,1727739043091,-500.0,0.00012876,2]
[339607241,1727739043100,-500.0,0.00012876,2]
[339607243,1727739043109,-500.0,0.00012876,2]
[339607245,1727739043119,-500.0,0.00012876,2]
[339607246,1727739043128,-500.0,0.00012876,2]
[339607248,1727739043136,-500.0,0.00012876,2]
[339607250,1727739043146,-500.0,0.00012876,2]
[339607252,1727739043155,-500.0,0.00012876,2]
[339607254,1727739043164,-500.0,0.00012876,2]
[339607257,1727739043173,-1013.51,0.00012876,2]
[339607259,1727739043182,-500.0,0.00012876,2]
[339607261,1727739043191,-646.06986153,0.00012876,2]
[339607263,1727739043201,-500.0,0.00012876,2]
[339607265,1727739043210,-500.0,0.00012876,2]
[339607266,1727739043219,-500.0,0.00012876,2]
[339607268,1727739043228,-500.0,0.00012876,2]
[339607270,1727739043238,-500.0,0.00012876,2]
[339607272,1727739043247,-500.0,0.00012876,2]
[339607274,1727739043256,-500.0,0.00012876,2]
[339607276,1727739043265,-500.0,0.00012876,2]
[339607278,1727739043274,-500.0,0.00012876,2]
[339607280,1727739043283,-500.0,0.00012876,2]
[339607282,1727739043292,-500.0,0.00012876,2]
[339607284,1727739043310,-500.0,0.00012876,2]
[339607286,1727739043319,-500.0,0.00012876,2]
[339607288,1727739043328,-500.0,0.00012876,2]
[339607290,1727739043337,-500.0,0.00012876,2]
[339607292,1727739043346,-500.0,0.00012876,2]
[339607294,1727739043355,-685.61,0.00012876,2]
[339607296,1727739043364,-500.0,0.00012876,2]
[339607298,1727739043373,-500.0,0.00012876,2]
[339607300,1727739043384,-500.0,0.00012876,2]
[339607302,1727739043393,-500.0,0.00012876,2]
[339607304,1727739043403,-500.4126654,0.00012876,2]
[339607306,1727739043413,-500.0,0.00012876,2]
[339607308,1727739043422,-500.0,0.00012876,2]
[339607310,1727739043431,-500.0,0.00012876,2]
[339607313,1727739043441,-798.17,0.00012876,2]
[339607315,1727739043450,-500.63651969,0.00012876,2]
[339607317,1727739043459,-500.4700877,0.00012876,2]
[339607318,1727739043468,-500.0,0.00012876,2]
[339607320,1727739043478,-501.25821878,0.00012876,2]
[339607323,1727739043487,-500.70215404,0.00012876,2]
[339607325,1727739043497,-500.0,0.00012876,2]
[339607327,1727739043506,-500.217024,0.00012876,2]
[339607329,1727739043516,-500.47589792,0.00012876,2]
[339607331,1727739043526,-501.28733497,0.00012876,2]
[339607333,1727739043536,-500.0,0.00012876,2]
[339607335,1727739043549,-500.64252926,0.00012876,2]
[339607337,1727739043559,-500.0,0.00012876,2]
[339607339,1727739043568,-500.0,0.00012876,2]
[339607341,1727739043577,-501.05529061,0.00012876,2]
[339607343,1727739043586,-500.0,0.00012876,2]
[339607345,1727739043595,-500.52024821,0.00012876,2]
[339607347,1727739043605,-501.93434806,0.00012876,2]
[339607349,1727739043614,-501.73970527,0.00012876,2]
[339607351,1727739043624,-500.0,0.00012876,2]
[339607353,1727739043633,-500.52302214,0.00012876,2]
[339607355,1727739043643,-500.0,0.00012876,2]
[339607357,1727739043652,-500.0,0.00012876,2]
[339607359,1727739043662,-508.50370169,0.00012876,2]
[339607361,1727739043671,-645.38328306,0.00012876,2]
[339607363,1727739043680,-500.97925424,0.00012876,2]
[339607365,1727739043690,-511.9429767,0.00012876,2]
[339607367,1727739043699,-503.96572664,0.00012876,2]
[339607369,1727739043709,-500.63377622,0.00012876,2]
[339607371,1727739043719,-500.0,0.00012876,2]
[339607373,1727739043728,-500.80162525,0.00012876,2]
[339607375,1727739043737,-586.65712911,0.00012876,2]
[339607377,1727739043746,-546.00453758,0.00012876,2]
[339607379,1727739043755,-502.6761413,0.00012876,2]
[339607381,1727739043764,-500.0,0.00012876,2]
[339607383,1727739043775,-384.80587614,0.00012876,2]
[339607385,1727739043784,-501.5600012,0.00012876,2]
[339607387,1727739043794,-450.80571172,0.00012876,2]
[339607389,1727739043803,-500.86538868,0.00012876,2]
[339607391,1727739043814,-500.0,0.00012876,2]
[339607393,1727739043823,-500.94779594,0.00012876,2]
[339607395,1727739043832,-501.43486918,0.00012876,2]
[339607397,1727739043843,-516.08963186,0.00012876,2]
[339607399,1727739043853,-500.0,0.00012876,2]
[339607401,1727739043861,-156.59759465,0.00012876,2]
[339607403,1727739043871,-484.99753492,0.00012876,2]
[339607405,1727739043880,-377.908182,0.00012876,2]
[339607407,1727739043889,-523.94720971,0.00012876,2]
[339607409,1727739043897,-500.50088469,0.00012876,2]
[339607411,1727739043906,-500.0,0.00012876,2]
[339607412,1727739043916,-595.57940839,0.00012876,2]
[339607413,1727739043925,-503.11855821,0.00012876,2]
[339607414,1727739043935,-500.0,0.00012876,2]
[339607415,1727739043944,-508.0646318,0.00012876,2]
[339607416,1727739043953,-513.38388664,0.00012876,2]
[339607417,1727739043962,-500.0,0.00012876,2]
[339607418,1727739043971,-506.98313188,0.00012876,2]
[339607419,1727739043981,-500.0,0.00012876,2]
[339607420,1727739043990,-500.0,0.00012876,2]
[339607421,1727739043999,-505.61419089,0.00012876,2]
[339607422,1727739044008,-360.29804123,0.00012876,2]
[339607423,1727739044029,-521.62,0.00010264,2]
[339607424,1727739044039,-139.70195877,0.00012876,2]
[339607425,1727739044051,-500.0,0.00012876,2]
[339607426,1727739044060,-502.17957765,0.00012876,2]
[339607427,1727739044069,-500.0,0.00012876,2]
[339607428,1727739044079,-500.0,0.00012876,2]
[339607430,1727739044088,-500.0,0.00012876,2]
[339607432,1727739044098,-500.0,0.00012876,2]
[339607434,1727739044107,-501.59630126,0.00012876,2]
[339607436,1727739044117,-500.0,0.00012876,2]
[339607437,1727739044126,-507.70635728,0.00012876,2]
[339607440,1727739044136,-508.91160039,0.00012876,2]
[339607442,1727739044146,-466.9640847,0.00012876,2]
[339607444,1727739044156,-500.0,0.00012876,2]
[339607446,1727739044165,-500.0,0.00012876,2]
[339607448,1727739044175,-506.33649068,0.00012876,2]
[339607450,1727739044184,-529.59123638,0.00012876,2]
[339607452,1727739044194,-490.34239289,0.00012876,2]
[339607454,1727739044206,-15.02125206,0.00012876,2]
[339607456,1727739044220,-500.0,0.00012876,2]
[339607458,1727739044229,-448.16374789,0.00012876,2]
[339607460,1727739044241,-60.80184032,0.00012876,2]
[339607462,1727739044251,-273.24715968,0.00012876,2]
[339607464,1727739044264,-248.34917351,0.00012876,2]
[339607466,1727739044274,-500.0,0.00012876,2]
[339607468,1727739044283,-359.26247181,0.00012876,2]
[339607471,1727739044296,-177.40539089,0.00012876,2]
[339607473,1727739044306,-500.0,0.00012876,2]
[339607475,1727739044315,-500.0,0.00012876,2]
[339607477,1727739044324,-500.0,0.00012876,2]
[339607479,1727739044334,-63.22460911,0.00012876,2]
[339607481,1727739044351,-436.77539089,0.00012876,2]
[339607483,1727739044360,-498.44154805,0.00012876,2]
[339607485,1727739044370,-500.0,0.00012876,2]
[339607487,1727739044379,-506.58906695,0.00012876,2]
[339607489,1727739044389,-500.0,0.00012876,2]
[339607491,1727739044399,-510.82860321,0.00012876,2]
[339607493,1727739044409,-510.73866051,0.00012876,2]
[339607495,1727739044419,-510.8445045,0.00012876,2]
[339607498,1727739044429,-501.77074067,0.00012876,2]
[339607500,1727739044439,-500.0,0.00012876,2]
[339607501,1727739044448,-460.27264224,0.00012876,2]
[339607504,1727739044461,-49.75367288,0.00012876,2]
[339607506,1727739044470,-501.75618239,0.00012876,2]
[339607508,1727739044480,-142.30650329,0.00012876,2]
[339607615,1727739045504,-349.99877428,0.00012528,2]
[339607673,1727739046055,-171.62122572,0.00012528,2]
[339607675,1727739046065,-357.69349671,0.00012876,2]
[339607677,1727739046075,-500.0,0.00012876,2]
[339607679,1727739046085,-500.0,0.00012876,2]
[339607681,1727739046095,-394.36773283,0.00012876,2]
[339607683,1727739046104,-500.0,0.00012876,2]
[339607684,1727739046114,-454.0138587,0.00012876,2]
[339607686,1727739046123,-500.0,0.00012876,2]
[339607688,1727739046132,-500.0,0.00012876,2]
[339607691,1727739046142,-500.0,0.00012876,2]
[339607693,1727739046152,-500.0,0.00012876,2]
[339607694,1727739046161,-500.0,0.00012876,2]
[339607696,1727739046170,-500.0,0.00012876,2]
[339607698,1727739046180,-212.29541982,0.00012876,2]
[339607701,1727739046190,-500.0,0.00012876,2]
[339607702,1727739046199,-500.0,0.00012876,2]
[339607704,1727739046209,-509.26292448,0.00012876,2]
[339607706,1727739046222,-500.0,0.00012876,2]
[339607708,1727739046231,-500.0,0.00012876,2]
[339607710,1727739046241,-500.0,0.00012876,2]
[339607712,1727739046250,-500.0,0.00012876,2]
[339607714,1727739046260,-634.79,0.00012876,2]
[339607716,1727739046269,-785.44,0.00012876,2]
[339607718,1727739046278,-500.0,0.00012876,2]
[339607720,1727739046288,-416.352142,0.00012876,2]
[339607722,1727739046298,-500.0,0.00012876,2]
[339607724,1727739046308,-500.0,0.00012876,2]
[339607726,1727739046317,-416.352142,0.00012876,2]
[339607728,1727739046326,-500.0,0.00012876,2]
[339607730,1727739046336,-500.0,0.00012876,2]
[339607732,1727739046345,-519.06916597,0.00012876,2]
[339607734,1727739046355,-500.0,0.00012876,2]
[339607736,1727739046364,-206.113608,0.00012876,2]
[339607738,1727739046374,-500.0,0.00012876,2]
[339607740,1727739046383,-500.0,0.00012876,2]
[339607742,1727739046393,-500.0,0.00012876,2]
[339607744,1727739046402,-361.37136765,0.00012876,2]
[339607746,1727739046412,-503.42172622,0.00012876,2]
[339607748,1727739046422,-500.0,0.00012876,2]
[339607750,1727739046431,-500.0,0.00012876,2]
[339607752,1727739046441,-347.2124426,0.00012876,2]
[339607754,1727739046453,-152.7875574,0.00012876,2]
[339607756,1727739046463,-135.10012112,0.00012876,2]
[339607758,1727739046475,-499.32819176,0.00012876,2]
[339607761,1727739046484,-360.26464071,0.00012876,2]
[339607763,1727739046496,-139.73535929,0.00012876,2]
[339607765,1727739046505,-500.0,0.00012876,2]
[339607767,1727739046515,-500.0,0.00012876,2]
[339607769,1727739046525,-431.55193586,0.00012876,2]
[339607771,1727739046536,-71.41601117,0.00012876,2]
[339607773,1727739046546,-500.0,0.00012876,2]
[339607775,1727739046555,-500.0,0.00012876,2]
[339607777,1727739046565,-500.0,0.00012876,2]
[339607779,1727739046574,-500.0,0.00012876,2]
[339607781,1727739046584,-500.0,0.00012876,2]
[339607783,1727739046593,-124.43233123,0.00012876,2]
[339607785,1727739046609,-375.56766877,0.00012876,2]
[339607787,1727739046618,-503.67029109,0.00012876,2]
[339607789,1727739046628,-500.0,0.00012876,2]
[339607791,1727739046637,-500.0,0.00012876,2]
[339607793,1727739046647,-422.26294014,0.00012876,2]
[339607795,1727739046659,-82.65447083,0.00012876,2]
[339607797,1727739046668,-500.0,0.00012876,2]
[339607799,1727739046677,-500.0,0.00012876,2]
[339607801,1727739046687,-500.0,0.00012876,2]
[339607803,1727739046696,-151.0,0.00012876,2]
[339607805,1727739046706,-1022.92,0.00012876,2]
[339607807,1727739046715,-500.0,0.00012876,2]
[339607809,1727739046724,-500.0,0.00012876,2]
[339607811,1727739046734,-500.0,0.00012876,2]
[339607813,1727739046743,-151.0,0.00012876,2]
[339607815,1727739046753,-500.0,0.00012876,2]
[339607817,1727739046762,-500.0,0.00012876,2]
[339607819,1727739046771,-515.97752917,0.00012876,2]
[339607822,1727739046789,-335.451,0.00012876,2]
[339607824,1727739046801,-174.30147083,0.00012876,2]
[339607826,1727739046811,-526.10793636,0.00012876,2]
[339607828,1727739046821,-500.0,0.00012876,2]
[339607830,1727739046830,-500.33313015,0.00012876,2]
[339607832,1727739046840,-500.0,0.00012876,2]
[339607834,1727739046850,-219.79600844,0.00012876,2]
[339607836,1727739046859,-500.0,0.00012876,2]
[339607838,1727739046868,-500.0,0.00012876,2]
[339607840,1727739046878,-500.0,0.00012876,2]
[339607842,1727739046887,-500.0,0.00012876,2]
[339607844,1727739046897,-500.0,0.00012876,2]
[339607846,1727739046906,-500.0,0.00012876,2]
[339607848,1727739046916,-500.0,0.00012876,2]
[339607851,1727739046927,-500.0,0.00012876,2]
[339607853,1727739046936,-500.0,0.00012876,2]
[339607855,1727739046945,-501.46368324,0.00012876,2]
[339607856,1727739046955,-500.0,0.00012876,2]
[339607858,1727739046964,-500.0,0.00012876,2]
[339607860,1727739046973,-500.0,0.00012876,2]
[339607863,1727739046985,-500.0,0.00012876,2]
[339607865,1727739046994,-508.04701323,0.00012876,2]
[339607867,1727739047003,-633.65169218,0.00012876,2]
[339607869,1727739047013,-607.75450366,0.00012876,2]
[339607871,1727739047023,-500.0,0.00012876,2]
[339607873,1727739047034,-602.84,0.00012876,2]
[339607875,1727739047044,-500.0,0.00012876,2]
[339607877,1727739047053,-80.00088575,0.00012876,2]
[339608698,1727739260654,180.22,9.479e-05,2]
[339608699,1727739321990,186.7,0.0001575,120]
[339608700,1727739686966,497.45,9.763e-05,2]
[339608701,1727740051509,-637.0,0.000107,5]
[339608702,1727740051535,-317.30843493,0.00010859,2]
[339608703,1727740051559,-45.69156507,0.00010959,2]
[339608709,1727740231558,-118.53843493,0.00010959,2]
[339608710,1727740231568,-250.0,0.00011547,2]
[339608711,1727740231578,-91.89280026,0.00011555,2]
[339608712,1727740231616,-158.10719974,0.00011555,2]
[339608713,1727740231626,-132.72480026,0.00011557,2]
[339608714,1727740231718,-323.86162,0.00011557,2]
[339608715,1727740231732,-6.57357974,0.00011557,2]
[339608719,1727740231968,-625.67562093,0.00011573,2]
[339608720,1727740231993,-102.23437907,0.00011573,2]
[339608721,1727740232003,-239.06,0.00011595,2]
[339608722,1727740232012,-250.0,0.00011596,2]
[339608723,1727740232021,-39.50562093,0.00011596,2]
[339608724,1727740232038,-610.8,0.00011596,2]
[339608725,1727740232049,-822.53437907,0.00011596,2]
[339608726,1727740232058,-218.38,0.00011617,2]
[339608727,1727740232067,-1548.95,0.00011617,2]
[339608728,1727740232077,-759.3736,0.00011752,2]
[339608729,1727740232087,-756.97,0.00011831,2]
[339608730,1727740232096,-167.95,0.00011845,2]
[339608731,1727740232106,-499.99,0.00011845,2]
[339608732,1727740232116,-1000.0,0.00011852,2]
[339608733,1727740232126,-150.0,0.00011999,2]
[339608734,1727740232136,-70200.36095075,0.00012,2]
[339608735,1727740232145,-497.45,0.00012027,2]
[339608736,1727740232161,-150.28,0.00012237,2]
[339608737,1727740232171,-155.752943,0.00012237,2]
[339608738,1727740232180,-1000.0,0.000126,2]
[339608739,1727740232189,-827.07643552,0.00012771,2]
[339608740,1727740232198,-1462.4113,0.00012776,2]
[339608741,1727740232208,-2500.0,0.00012776,2]
[339608742,1727740232217,-2022.96850939,0.00012776,2]
[339608743,1727740232227,-2022.96850935,0.00012779,2]
[339608744,1727740232238,-676.79875911,0.00012781,2]
[339608745,1727740232259,-1346.16975024,0.00012781,2]
[339608746,1727740232269,-178.95360266,0.00012784,2]
[339608747,1727740232280,-440.63755379,0.00012784,2]
[339608755,1727740237708,-352.57996334,0.00012784,2]
[339608756,1727740237814,-1050.79738956,0.00012784,2]
[339608757,1727740237824,-2022.96850935,0.00012787,2]
[339608758,1727740237834,-1141.35290597,0.00012789,2]
[339608759,1727740237845,-881.61560338,0.00012789,2]
[339608760,1727740237855,-2374.31376487,0.0001279,2]
[339608761,1727740237864,-2022.96850935,0.00012792,2]
[339608762,1727740237874,-2022.96850935,0.00012795,2]
[339608763,1727740237883,-500.0,0.00012797,2]
[339608764,1727740237893,-156.2770892,0.00012797,2]
[339608765,1727740237902,-882.28788906,0.00012797,2]
[339608776,1727740239656,-1140.68062029,0.00012797,2]
[339608777,1727740239666,-154.0650481,0.00012798,2]
[339608778,1727740239675,-283.4059,0.00012798,2]
[339608779,1727740239685,-3648.86690571,0.00012798,2]
[339608780,1727740239695,-885.64589429,0.00012798,2]
[339608781,1727740239705,-1510.93770577,0.00012798,2]
[339608782,1727740239717,-419.23049423,0.00012798,2]
[339608783,1727740239729,-154.06504808,0.00012799,2]
[339608784,1727740239738,-180.45951325,0.00012799,2]
[339608785,1727740239747,-170.54036843,0.00012799,2]
[339608786,1727740239757,-154.06504808,0.00012799,2]
[339608787,1727740239767,-274.4289735,0.00012799,2]
[339608788,1727740239778,-154.06504808,0.000128,2]
[339608789,1727740239787,-274.42897349,0.000128,2]
[339608790,1727740239797,-316.462,0.000128,2]
[339608791,1727740239806,-154.06504808,0.000128,2]
[339608792,1727740239816,-193.68772911,0.000128,2]
[339608793,1727740239826,-2022.96850935,0.000128,2]
[339608794,1727740239836,-171.84,0.000128,2]